fUST/lending_fUST_20260406
["ID","MTS","AMOUNT","RATE_DAILY","PERIOD"]
[419897281,1775483435115,-561.42480622,0.00022768,2]
[419897282,1775483435125,-1364.40734417,0.00022768,2]
[419897283,1775483435138,-135.59265583,0.00022768,2]
[419897284,1775483435149,-1500.0,0.00022768,2]
[419897285,1775483435159,-860.28346831,0.00022768,2]
[419897286,1775483435168,-1500.0,0.00022768,2]
[419897287,1775483435178,-1500.0,0.00022768,2]
[419897288,1775483435188,-178.1568643,0.00022768,2]
[419897289,1775483435198,-752.12436444,0.00022768,2]
[419897290,1775483435207,-4001.11512391,0.00022927,12]
[419897291,1775483435217,-500.0,0.00022973,2]
[419897292,1775483435226,-500.0,0.00022973,2]
[419897293,1775483435235,-500.0,0.00022973,2]
[419897294,1775483435245,-500.0,0.00022973,2]
[419897295,1775483435255,-500.0,0.00022973,2]
[419897296,1775483435264,-21830.20907501,0.00023,2]
[419897297,1775483435276,-4674.09999998,0.00023,2]
[419897298,1775483435288,-1093.98275846,0.00023,2]
[419897357,1775483438417,-1000.0,0.00019178,2]
[419897359,1775483438427,-1000.0,0.00019178,2]
[419897362,1775483438438,-1000.0,0.00019178,2]
[419897363,1775483438448,-1000.0,0.00019178,7]
[419897364,1775483438458,-1000.0,0.00019178,7]
[419897365,1775483438469,-1000.0,0.00019178,7]
[419897366,1775483438480,-1000.0,0.00019178,7]
[419897367,1775483438489,-152.0,0.00022,2]
[419897368,1775483438499,-21524.87168373,0.00023,2]
[419897369,1775483438509,-154.0,0.00023,2]
[419897370,1775483438520,-154.0,0.00023,2]
[419897371,1775483438530,-164.0,0.00023,2]
[419897372,1775483438540,-270.83333333,0.00023,2]
[419897373,1775483438550,-152.0,0.00023,2]
[419897374,1775483438560,-255.0,0.00023014,7]
[419897375,1775483438570,-2866.53365299,0.00023093,2]
[419897377,1775483438580,-1000.0,0.00023121,2]
[419897378,1775483438590,-785.77930653,0.00023121,2]
[419897379,1775483438599,-573.2967109,0.00023221,2]
[419897380,1775483438609,-1000.0,0.00023221,2]
[419897381,1775483438619,-196.3430609,0.00023221,2]
[419897382,1775483438628,-2000.0,0.00023316,2]
[419897383,1775483438639,-2000.0,0.00023316,2]
[419897384,1775483438648,-2000.0,0.00023316,2]
[419897385,1775483438658,-1512.43968481,0.00023316,2]
[419897386,1775483438668,-1000.0,0.00023521,2]
[419897387,1775483438678,-966.25683977,0.00023521,2]
[419897388,1775483438687,-1000.0,0.00023521,2]
[419897389,1775483438697,-1007.62344266,0.00023521,2]
[419897390,1775483438707,-1000.0,0.00023521,2]
[419897391,1775483438716,-152.79027183,0.00023555,2]
[419897392,1775483438726,-478.75725327,0.00023555,2]
[419897393,1775483438738,-168.3888056,0.00023555,2]
[419897394,1775483438747,-204.50344978,0.00023555,2]
[419897395,1775483438756,-578.20924308,0.00023555,2]
[419897396,1775483438766,-2230.315306,0.00023555,2]
[419897397,1775483438775,-557.5788265,0.00023555,2]
[419897398,1775483438785,-578.20924308,0.0002361,2]
[419897399,1775483438794,-599.60298507,0.00023665,2]
[419897400,1775483438804,-1226.11704065,0.00023668,2]
[419897401,1775483438813,-621.78829552,0.0002372,2]
[419897402,1775483438823,-1000.0,0.00023744,30]
[419897403,1775483438833,-67289.51646758,0.0002375,2]
[419897404,1775483438843,-1500.0,0.00023768,2]
[419897405,1775483438852,-644.79446246,0.00023775,2]
[419897406,1775483438862,-668.65185757,0.0002383,2]
[419897407,1775483438872,-2500.0,0.00023864,2]
[419897408,1775483438882,-2500.0,0.00023864,2]
[419897409,1775483438891,-2500.0,0.00023864,2]
[419897410,1775483438901,-693.3919763,0.00023885,2]
[419897411,1775483438910,-374.84663627,0.0002394,2]
[419897412,1775483438921,-154.0,0.00024,2]
[419897413,1775483438932,-154.0,0.00024,2]
[419897414,1775483438942,-164.0,0.00024,2]
[419897415,1775483438952,-208.163705,0.0002401,14]
[419897416,1775483438962,-455.4115081,0.00024015,2]
[419897417,1775483438971,-756.19,0.00024056,2]
[419897418,1775483438982,-756.19,0.00024056,2]
[419897419,1775483438991,-756.19,0.00024056,2]
[419897420,1775483439001,-756.19,0.00024056,2]
[419897421,1775483439012,-756.19,0.00024056,2]
[419897422,1775483439022,-756.19,0.00024056,2]
[419897423,1775483439032,-756.19,0.00024056,2]
[419897424,1775483439042,-756.19,0.00024056,2]
[419897425,1775483439051,-756.19,0.00024056,2]
[419897426,1775483439061,-756.19,0.00024056,2]
[419897427,1775483439071,-756.19,0.00024056,2]
[419897428,1775483439081,-756.19,0.00024056,2]
[419897429,1775483439090,-756.19,0.00024056,2]
[419897430,1775483439101,-756.19,0.00024056,2]
[419897431,1775483439111,-756.19,0.00024056,2]
[419897432,1775483439121,-823.11,0.00024056,2]
[419897433,1775483439130,-1500.0,0.00024068,2]
[419897434,1775483439139,-1500.0,0.00024068,2]
[419897435,1775483439149,-1500.0,0.00024068,2]
[419897436,1775483439159,-2312.83697232,0.00024103,2]
[419897437,1775483439168,-259.0,0.00024164,7]
[419897438,1775483439179,-5980.47046039,0.00024172,2]
[419897439,1775483439188,-5000.0,0.00024172,2]
[419897440,1775483439200,-5000.0,0.00024172,2]
[419897441,1775483439210,-5000.0,0.00024172,2]
[419897442,1775483439219,-5000.0,0.00024172,2]
[419897443,1775483439229,-333.333993,0.00024172,2]
[419897444,1775483439238,-333.333993,0.00024172,2]
[419897445,1775483439248,-333.333993,0.00024172,2]
[419897446,1775483439259,-333.333993,0.00024172,2]
[419897447,1775483439268,-178.25723857,0.00024173,2]
[419897448,1775483439279,-500.0,0.00024173,2]
[419897449,1775483439288,-4308.2238994,0.00024177,23]
[419897450,1775483439298,-151.0,0.00024177,2]
[419897451,1775483439307,-151.0,0.00024177,2]
[419897452,1775483439317,-160.000132,0.00024177,2]
[419897453,1775483439327,-160.000132,0.00024177,2]
[419897454,1775483439336,-160.000132,0.00024177,2]
[419897455,1775483439346,-160.000132,0.00024177,2]
[419897456,1775483439356,-151.0,0.00024177,2]
[419897457,1775483439365,-209.4302541,0.00024187,60]
[419897458,1775483439375,-2000.0,0.00024316,2]
[419897459,1775483439385,-3000.0,0.00024412,2]
[419897460,1775483439394,-3000.0,0.00024412,2]
[419897461,1775483439404,-3000.0,0.00024412,2]
[419897462,1775483439414,-285.9,0.00024415,2]
[419897463,1775483439424,-2866.53365299,0.00024454,2]
[419897464,1775483439434,-500.0,0.00024473,2]
[419897465,1775483439444,-500.0,0.00024473,2]
[419897466,1775483439454,-10000.0,0.000245,4]
[419897467,1775483439464,-700000.0,0.000245,7]
[419897468,1775483439473,-151.0,0.000245,2]
[419897469,1775483439483,-151.0,0.000245,2]
[419897470,1775483439493,-151.0,0.000245,2]
[419897471,1775483439503,-151.0,0.000245,2]
[419897472,1775483439512,-151.0,0.000245,2]
[419897473,1775483439521,-333.333993,0.000245,2]
[419897474,1775483439531,-333.333993,0.000245,2]
[419897475,1775483439542,-333.333993,0.000245,2]
[419897476,1775483439552,-333.333993,0.000245,2]
[419897477,1775483439561,-151.0,0.000245,2]
[419897478,1775483439570,-270.83333333,0.000245,7]
[419897479,1775483439581,-160.000132,0.000245,2]
[419897480,1775483439590,-160.000132,0.000245,2]
[419897481,1775483439600,-160.000132,0.000245,2]
[419897482,1775483439610,-160.000132,0.000245,2]
[419897483,1775483439620,-151.0,0.000245,2]
[419897484,1775483439629,-151.0,0.000245,2]
[419897485,1775483439639,-151.0,0.000245,2]
[419897486,1775483439648,-151.0,0.000245,2]
[419897487,1775483439659,-151.0,0.000245,2]
[419897488,1775483439670,-151.0,0.000245,2]
[419897489,1775483439680,-151.0,0.000245,2]
[419897490,1775483439690,-392.147673,0.000245,2]
[419897491,1775483439700,-392.147673,0.000245,2]
[419897492,1775483439712,-392.147673,0.000245,2]
[419897493,1775483439724,-392.147673,0.000245,2]
[419897494,1775483439733,-392.147673,0.000245,2]
[419897495,1775483439744,-392.147673,0.000245,2]
[419897496,1775483439754,-392.147673,0.000245,2]
[419897497,1775483439765,-392.147673,0.000245,2]
[419897498,1775483439775,-151.0,0.000245,2]
[419897499,1775483439786,-151.0,0.000245,2]
[419897500,1775483439798,-151.0,0.000245,2]
[419897501,1775483439808,-151.0,0.000245,2]
[419897502,1775483439818,-151.0,0.000245,2]
[419897503,1775483439827,-151.0,0.000245,2]
[419897504,1775483439837,-151.0,0.000245,2]
[419897505,1775483439848,-301.243098,0.000245,2]
[419897506,1775483439858,-2355.8905242,0.00024606,2]
[419897507,1775483439869,-4632.3110845,0.00024606,2]
[419897508,1775483439878,-171.3719772,0.00024606,2]
[419897509,1775483439888,-2000.0,0.00024616,2]
[419897510,1775483439898,-2000.0,0.00024616,2]
[419897511,1775483439908,-2000.0,0.00024616,2]
[419897512,1775483439918,-151.0,0.00024643,2]
[419897513,1775483439929,-151.0,0.00024643,2]
[419897514,1775483439940,-151.521604,0.00024643,2]
[419897515,1775483439950,-2398.4119403,0.00024651,2]
[419897516,1775483439959,-160.0,0.00024658,2]
[419897517,1775483439970,-160.0,0.00024658,2]
[419897518,1775483439981,-212.6574986,0.00024658,2]
[419897519,1775483439990,-258.75910758,0.00024681,2]
[419897520,1775483440001,-285.9,0.0002469,2]
[419897521,1775483440011,-250.0,0.00024721,2]
[419897522,1775483440020,-1000.0,0.00024721,2]
[419897523,1775483440030,-500.0,0.00024742,2]
[419897524,1775483440040,-500.0,0.00024742,2]
[419897525,1775483440052,-500.0,0.00024742,2]
[419897526,1775483440062,-500.0,0.00024742,2]
[419897527,1775483440073,-500.0,0.00024742,2]
[419897528,1775483440083,-500.0,0.00024742,2]
[419897529,1775483440093,-500.0,0.00024742,2]
[419897530,1775483440102,-502.81564678,0.00024742,2]
[419897531,1775483440112,-151.0,0.00024743,2]
[419897532,1775483440122,-151.0,0.00024743,2]
[419897533,1775483440131,-151.0,0.00024743,2]
[419897534,1775483440140,-151.0,0.00024743,2]
[419897535,1775483440150,-151.0,0.00024743,2]
[419897536,1775483440159,-151.0,0.00024743,2]
[419897537,1775483440169,-500.0,0.0002475,30]
[419897538,1775483440179,-500.0,0.0002475,30]
[419897539,1775483440188,-255.54,0.0002475,30]
[419897540,1775483440198,-455.2608298,0.0002483,2]
[419897541,1775483440207,-2500.0,0.00024864,2]
[419897542,1775483440218,-231.17110891,0.00024924,2]
[419897543,1775483440228,-173.66,0.00024943,4]
[419897544,1775483440238,-3500.0,0.0002496,2]
[419897545,1775483440247,-3500.0,0.0002496,2]
[419897546,1775483440257,-3500.0,0.0002496,2]
[419897547,1775483440268,-285.9,0.00024966,2]
[419897548,1775483440278,-5615.95,0.00025,30]
[419897549,1775483440288,-154.0,0.00025,2]
[419897550,1775483440299,-154.0,0.00025,2]
[419897551,1775483440309,-164.0,0.00025,2]
[419897553,1775483440319,-503.01182733,0.00025019,9]
[419897575,1775483440533,-1000.0,0.00025021,2]
[419897577,1775483440544,-1000.0,0.00025021,2]
[419897579,1775483440554,-930.08176117,0.00025042,2]
[419897581,1775483440563,-205.52581822,0.00025042,2]
[419897582,1775483440572,-972.35359865,0.00025042,2]
[419897584,1775483440582,-283.58456992,0.00025042,2]
[419897586,1775483440591,-359.69128128,0.00025046,3]
[419897588,1775483440600,-251.41,0.00025085,6]
[419897590,1775483440610,-2500.0,0.00025164,2]
[419897592,1775483440619,-2500.0,0.00025164,2]
[419897594,1775483440629,-1055.94883393,0.00025164,2]
[419897596,1775483440638,-2487.15318209,0.00025199,2]
[419897599,1775483440647,-270.83333333,0.000252,7]
[419897601,1775483440656,-250.0,0.00025221,2]
[419897603,1775483440666,-3046.62221553,0.00025221,2]
[419897605,1775483440675,-195.95,0.00025233,6]
[419897607,1775483440684,-285.9,0.00025241,2]
[419897609,1775483440695,-350.0,0.00025268,2]
[419897611,1775483440704,-1500.0,0.00025268,2]
[419897613,1775483440713,-507.78703592,0.00025313,25]
[419897615,1775483440723,-4659.74813762,0.00025344,2]
[419897617,1775483440732,-507.78703592,0.00025405,27]
[419897619,1775483440741,-160.49,0.00025411,3]
[419897621,1775483440751,-3000.0,0.00025412,2]
[419897623,1775483440760,-492.4792192,0.00025433,7]
[419897625,1775483440770,-60012.62813123,0.00025444,2]
[419897627,1775483440779,-151.0,0.00025444,2]
[419897629,1775483440789,-151.0,0.00025444,2]
[419897631,1775483440798,-1237305.75727177,0.00025444,2]
[419897658,1775483441065,-1000.0,0.00019178,7]
[419897660,1775483441075,-487.87885028,0.00019178,7]
[419898180,1775483446756,-512.12114972,0.00019178,7]
[419898181,1775483446766,-1000.0,0.00019178,7]
[419898183,1775483446776,-1000.0,0.00019178,7]
[419898185,1775483446785,-991.85615254,0.00019178,7]
[419898747,1775483485730,1000.0,0.00032876,120]
[419898750,1775483890895,1000.0,0.00032876,120]
[419898751,1775483896251,2000.0,0.00032876,120]
[419898752,1775483907616,1000.0,0.00032876,120]
[419898753,1775483916266,1000.0,0.00032876,120]
[419898754,1775483925958,1000.0,0.00032876,120]
[419898755,1775483933065,1000.0,0.00032876,120]
[419898756,1775483942378,156.98195376,0.00032876,120]
[419898758,1775483971572,1000.0,0.00032876,120]
[419898759,1775483984199,1000.0,0.00032876,120]
[419898760,1775483984996,1000.0,0.00032876,120]
[419898761,1775483992279,1000.0,0.00032876,120]
[419898762,1775483999798,1000.0,0.00032876,120]
[419898764,1775484117649,1000.0,0.00032876,120]
[419898765,1775484138152,1000.0,0.00032876,120]
[419898766,1775484143966,1000.0,0.00032876,120]
[419898768,1775484149903,1000.0,0.00032876,120]
[419898769,1775484155325,1000.0,0.00032876,120]
[419898770,1775484162027,1000.0,0.00032876,120]
[419898771,1775484167734,1000.0,0.00032876,120]
[419898772,1775484174464,1000.0,0.00032876,120]
[419898773,1775484206457,1000.0,0.00032876,120]
[419898774,1775484212876,1000.0,0.00032876,120]
[419898775,1775484219702,1000.0,0.00032876,120]
[419898776,1775484229652,1000.0,0.00032876,120]
[419898777,1775484260761,1000.0,0.00032876,120]
[419898778,1775484267806,1000.0,0.00032876,120]
[419898781,1775484600461,1688.20168111,0.00032876,120]
[419898784,1775484624860,659.37,0.000328,120]
[419898793,1775484633174,-528.55735956,0.00013699,2]
[419898794,1775484633228,-471.44264044,0.00013699,2]
[419898795,1775484633238,-615.0,0.00013699,2]
[419898796,1775484633247,-134.55735956,0.000138,2]
[419898797,1775484633259,-365.44264044,0.000138,2]
[419898798,1775484633269,-202.1089758,0.000139,2]
[419898799,1775484633278,-785.92122801,0.00019178,2]
[419898800,1775484633334,-214.07877199,0.00019178,2]
[419898801,1775484633344,-39.00992435,0.00019178,2]
[419898854,1775484638605,-692.0,0.00019178,2]
[419898855,1775484638617,-265.95585869,0.00019178,2]
[419898856,1775484639210,-3.03421696,0.00019178,2]
[419898857,1775484639220,-1000.0,0.00019178,2]
[419898858,1775484639230,-1000.0,0.00019178,2]
[419898859,1775484639240,-502.3835556,0.00019178,7]
[419898860,1775484639252,-497.6164444,0.00019178,7]
[419898861,1775484639262,-1000.0,0.00019178,7]
[419898862,1775484639271,-1000.0,0.00019178,7]
[419898863,1775484639281,-1000.0,0.00019178,7]
[419898864,1775484639291,-179.94944,0.00019624,2]
[419898865,1775484639301,-176.62436523,0.00020052,5]
[419898866,1775484639311,-156.861,0.00020338,2]
[419898867,1775484639321,-187.602,0.00020338,2]
[419898868,1775484639330,-4691.81983806,0.00020573,2]
[419898869,1775484639339,-500.0,0.00020652,2]
[419898870,1775484639349,-610.47582177,0.00020652,2]
[419898871,1775484639359,-500.0,0.00020652,2]
[419898872,1775484639368,-500.0,0.00020652,2]
[419898873,1775484639377,-196.83633848,0.00020652,2]
[419898874,1775484639386,-500.0,0.00020652,2]
[419898875,1775484639395,-405.85907921,0.00020652,2]
[419898876,1775484639405,-500.0,0.00020652,2]
[419898877,1775484639414,-500.0,0.00020652,2]
[419898878,1775484639424,-500.0,0.00020652,2]
[419898879,1775484639434,-500.0,0.00020652,2]
[419898880,1775484639443,-500.0,0.00020652,2]
[419898881,1775484639452,-500.0,0.00020652,2]
[419898882,1775484639462,-500.0,0.00020652,2]
[419898883,1775484639471,-500.0,0.00020652,2]
[419898884,1775484639481,-158.32242609,0.00020652,2]
[419898885,1775484639490,-606.84687376,0.00020652,2]
[419898886,1775484639499,-412.45315052,0.00020652,2]
[419898887,1775484639509,-500.0,0.00020652,2]
[419898888,1775484639518,-500.0,0.00020652,2]
[419898889,1775484639527,-500.0,0.00020652,2]
[419898890,1775484639537,-500.0,0.00020652,2]
[419898891,1775484639546,-500.0,0.00020652,2]
[419898892,1775484639556,-227.51581007,0.00020652,2]
[419898893,1775484639565,-500.0,0.00020652,2]
[419898894,1775484639574,-500.0,0.00020652,2]
[419898895,1775484639584,-500.0,0.00020652,2]
[419898896,1775484639593,-500.0,0.00020652,2]
[419898897,1775484639605,-450.99127046,0.00020652,2]
[419898898,1775484639615,-500.0,0.00020652,2]
[419898899,1775484639626,-186.59092026,0.00020652,2]
[419898900,1775484639636,-200.0,0.00020653,2]
[419898901,1775484639646,-1700000.0,0.00020653,2]
[419898902,1775484639655,-232554.93344321,0.00020653,2]
[419898903,1775484639665,-252.77702052,0.00020741,2]
[419898904,1775484639675,-151.0,0.00020741,2]
[419898905,1775484639684,-151.0,0.00020741,2]
[419898906,1775484639695,-151.0,0.00020741,2]
[419898907,1775484639705,-151.0,0.00020741,2]
[419898908,1775484639715,-151.0,0.00020741,2]
[419898909,1775484639724,-151.0,0.00020741,2]
[419898910,1775484639734,-151.0,0.00020741,2]
[419898911,1775484639743,-151.0,0.00020741,2]
[419898912,1775484639753,-151.0,0.00020741,2]
[419898913,1775484639763,-151.0,0.00020741,2]
[419898914,1775484639774,-151.0,0.00020741,2]
[419898915,1775484639784,-151.0,0.00020741,2]
[419898916,1775484639795,-151.0,0.00020741,2]
[419898917,1775484639805,-151.0,0.00020741,2]
[419898918,1775484639816,-151.0,0.00020741,2]
[419898919,1775484639825,-151.0,0.00020741,2]
[419898920,1775484639835,-151.0,0.00020741,2]
[419898921,1775484639846,-151.0,0.00020741,2]
[419898922,1775484639855,-151.0,0.00020741,2]
[419898923,1775484639865,-162.18590013,0.00020741,2]
[419898925,1775484639875,-500.0,0.00020741,2]
[419898927,1775484639884,-634.53,0.00020753,2]
[419898928,1775484639894,-634.53,0.00020753,2]
[419898929,1775484639903,-634.53,0.00020753,2]
[419898930,1775484639913,-634.53,0.00020753,2]
[419898931,1775484639923,-634.53,0.00020753,2]
[419898933,1775484639933,-634.53,0.00020753,2]
[419898934,1775484639942,-634.53,0.00020753,2]
[419898935,1775484639952,-634.53,0.00020753,2]
[419898936,1775484639961,-634.53,0.00020753,2]
[419898937,1775484639970,-634.53,0.00020753,2]
[419898938,1775484639981,-712.09,0.00020753,2]
[419898939,1775484639990,-500.0,0.00020773,2]
[419898940,1775484639999,-500.0,0.00020773,2]
[419898941,1775484640008,-922.95,0.00020852,2]
[419898942,1775484640018,-922.95,0.00020852,2]
[419898943,1775484640027,-922.95,0.00020852,2]
[419898944,1775484640037,-922.95,0.00020852,2]
[419898945,1775484640046,-922.95,0.00020852,2]
[419898946,1775484640055,-922.95,0.00020852,2]
[419898947,1775484640064,-922.95,0.00020852,2]
[419898948,1775484640073,-922.95,0.00020852,2]
[419898949,1775484640082,-922.95,0.00020852,2]
[419898950,1775484640091,-922.95,0.00020852,2]
[419898951,1775484640100,-922.95,0.00020852,2]
[419898952,1775484640109,-922.95,0.00020852,2]
[419898953,1775484640119,-250.38641776,0.00020873,2]
[419898954,1775484640129,-500.0,0.00021015,2]
[419898955,1775484640138,-500.0,0.00021289,2]
[419898956,1775484640149,-922.95,0.00021307,2]
[419898957,1775484640159,-922.95,0.00021307,2]
[419898958,1775484640169,-922.95,0.00021307,2]
[419898959,1775484640181,-922.95,0.00021307,2]
[419898960,1775484640191,-922.95,0.00021307,2]
[419898961,1775484640200,-922.95,0.00021307,2]
[419898962,1775484640210,-922.95,0.00021307,2]
[419898963,1775484640220,-922.95,0.00021307,2]
[419898964,1775484640230,-922.95,0.00021307,2]
[419898965,1775484640239,-922.95,0.00021307,2]
[419898966,1775484640248,-922.95,0.00021307,2]
[419898967,1775484640258,-923.18,0.00021307,2]
[419898968,1775484640267,-1000.0,0.00021321,2]
[419898969,1775484640276,-1000.0,0.00021321,2]
[419898970,1775484640286,-500.0,0.00021373,2]
[419898971,1775484640295,-500.0,0.00021373,2]
[419898974,1775484640305,-500.0,0.00021373,2]
[419898977,1775484640315,-200.0,0.00021868,2]
[419898979,1775484640325,-1500.0,0.00021868,2]
[419898981,1775484640334,-1500.0,0.00021868,2]
[419898983,1775484640343,-1000.0,0.00021921,2]
[419898986,1775484640353,-1000.0,0.00021921,2]
[419898988,1775484640363,-1000.0,0.00021921,2]
[419898990,1775484640372,-302.0,0.00022,2]
[419898992,1775484640381,-161.0,0.00022,2]
[419898994,1775484640391,-154.0,0.00022,2]
[419898996,1775484640400,-155.0,0.00022,2]
[419898998,1775484640410,-162.0,0.00022,2]
[419899000,1775484640419,-170.0,0.00022,2]
[419899002,1775484640429,-199523.22704076,0.00022,2]
[419899004,1775484640441,-12566.99888557,0.00022,2]
[419899007,1775484640453,-2263.13675213,0.00022,2]
[419899010,1775484640465,-6358.05590275,0.00022,2]
[419899013,1775484640476,-7957.70375422,0.00022,2]
[419899016,1775484640486,-184.0,0.00022061,2]
[419899019,1775484640496,-170.0,0.00022192,7]
[419899025,1775484640706,-1946.42513875,0.00022416,2]
[419899026,1775484640715,-504.20269337,0.00022416,2]
[419899027,1775484640725,-500.0,0.00022468,2]
[419899028,1775484640735,-1500.0,0.00022468,2]
[419899029,1775484640744,-657.91069064,0.00022468,2]
[419899030,1775484640754,-168.0,0.00023,2]
[419899031,1775484640764,-155.0,0.00023,2]
[419899032,1775484640774,-270.83333333,0.00023,2]
[419899033,1775484640783,-170.0,0.00023014,7]
[419899034,1775484640795,-2000.0,0.00023016,2]
[419899035,1775484640805,-2500.0,0.00023564,2]
[419899036,1775484640815,-3716.60671764,0.0002379,2]
[419899037,1775484640825,-160.0,0.00024,2]
[419899038,1775484640837,-1608.75896386,0.00024112,2]
[419899039,1775484640847,-2230.315306,0.00024133,2]
[419899040,1775484640856,-170.0,0.00024164,7]
[419899041,1775484640866,-500.0,0.000244,2]
[419899042,1775484640876,-500.0,0.000244,2]
[419899043,1775484640887,-190.6,0.00024481,2]
[419899044,1775484640897,-2312.83697232,0.00024681,2]
[419899045,1775484640907,-355.23954491,0.00024681,2]
[419899046,1775484640916,-190.6,0.0002475,2]
[419899047,1775484640926,-1802.11713303,0.0002476,2]
[419899048,1775484640936,-1000.0,0.00024948,2]
[419899049,1775484640947,-1000.0,0.00024948,2]
[419899050,1775484640957,-2974.44,0.00025,30]
[419899051,1775484640966,-4573.10484916,0.00025,2]
[419899052,1775484640978,-2699.7094292,0.00025,2]
[419899053,1775484640989,-10364.0,0.00025,2]
[419899054,1775484640999,-500.0,0.00025,2]
[419899055,1775484641009,-7211.71732518,0.00025,2]
[419899056,1775484641020,-190.6,0.0002502,2]
[419899057,1775484641030,-267.76926684,0.00025042,2]
[419899058,1775484641040,-184.0,0.00025061,2]
[419899059,1775484641051,-821.28116959,0.00025165,2]
[419899060,1775484641060,-2398.4119403,0.00025229,2]
[419899061,1775484641070,-190.6,0.00025289,2]
[419899062,1775484641081,-1264.2375027,0.00025408,2]
[419899063,1775484641091,-286163.53334283,0.00025444,2]
[419899064,1775484641103,-6212.50644161,0.00025444,2]
[419899102,1775484643607,-614.42788462,0.00020643,10]
[419899103,1775484643661,-725.64211538,0.00020643,10]
[419899104,1775484643672,-236.82636327,0.00024681,2]
[419899105,1775484643681,-1646.29308135,0.00025444,2]
[419899122,1775484646963,-157.88424218,0.00024681,2]
[419899123,1775484646973,-32415.92678215,0.00025444,2]
[419899124,1775484694677,1000.0,0.00032876,120]
[419899128,1775485045613,251.34,0.00032877,120]
[419899130,1775485282564,1000.0,0.00032876,120]
[419899131,1775485325352,1000.0,0.000328,120]
[419899132,1775485355290,1800.0,0.0003287,120]
[419899136,1775485679979,400.0,0.00032876,120]
[419899171,1775485838847,-165.704282,9.573e-05,2]
[419899172,1775485838858,-554.0,9.573e-05,2]
[419899173,1775485838868,-165.704282,0.00011168,2]
[419899174,1775485838878,-165.704282,0.00012764,2]
[419899175,1775485838888,-1000.0,0.00013699,2]
[419899176,1775485838897,-165.704282,0.00014359,2]
[419899177,1775485838907,-165.704282,0.00015955,2]
[419899178,1775485838916,-165.704282,0.0001755,2]
[419899179,1775485838926,-1000.0,0.00019102,2]
[419899180,1775485838935,-165.704282,0.00019146,2]
[419899181,1775485838945,-1000.0,0.00019178,2]
[419899182,1775485838955,-1000.0,0.00019178,7]
[419899183,1775485838964,-300.0,0.00019531,2]
[419899184,1775485838974,-12744.3006562,0.00019532,2]
[419899185,1775485838984,-1582.06211154,0.000203,2]
[419899186,1775485838993,-3863.89619043,0.000203,2]
[419899187,1775485839004,-3538.54195281,0.000203,2]
[419899188,1775485839014,-500.0,0.00020352,2]
[419899189,1775485839023,-500.0,0.00020352,2]
[419899190,1775485839033,-576.37303162,0.00020352,2]
[419899191,1775485839043,-500.0,0.00020352,2]
[419899192,1775485839052,-370.72085076,0.00020352,2]
[419899193,1775485839062,-369.9623497,0.00020352,2]
[419899194,1775485839072,-500.0,0.00020352,2]
[419899195,1775485839083,-500.0,0.00020352,2]
[419899196,1775485839093,-500.0,0.00020352,2]
[419899197,1775485839104,-500.0,0.00020352,2]
[419899198,1775485839114,-500.0,0.00020352,2]
[419899199,1775485839123,-500.0,0.00020352,2]
[419899200,1775485839135,-272.33236338,0.00020352,2]